bitfinex/quotes_ETHUSD_20251009
["timestamp","ask_amount","ask_price","bid_price","bid_amount"]
[1760022975458,1e-08,4353.9,4353.8,4.21684413]
[1760022975751,1e-08,4353.9,4353.8,13.80844413]
[1760022975956,1e-08,4353.9,4353.8,13.80944413]
[1760022976730,1e-08,4353.9,4353.8,13.17584413]
[1760022978454,1e-08,4353.9,4353.8,32.28084413]
[1760022978658,1e-08,4353.9,4353.8,34.53261458]
[1760022979756,1e-08,4353.9,4353.8,34.64701458]
[1760022983660,1e-08,4353.9,4353.8,6.58401458]
[1760022983878,1e-08,4353.9,4353.8,12.0554]
[1760022984041,1e-08,4353.9,4353.8,18.6174]
[1760022985576,1e-08,4353.9,4353.8,20.91424413]
[1760022985773,1e-08,4353.9,4353.8,20.79984413]
[1760022985961,1e-08,4353.9,4353.8,20.91424413]
[1760022986142,1e-08,4353.9,4353.8,23.16601458]
[1760022987281,0.00200001,4353.9,4353.8,23.16601458]
[1760022989366,0.00200001,4353.9,4353.8,20.86917045]
[1760022989880,0.00200001,4353.9,4353.8,23.16601458]
[1760022990266,0.00200001,4353.9,4353.8,20.86917045]
[1760022990466,0.00200001,4353.9,4353.8,18.6174]
[1760022995395,0.00200001,4353.9,4353.8,20.91424413]
[1760022995594,0.00200001,4353.9,4353.8,18.6174]
[1760022996571,0.00200001,4353.9,4353.8,18.6164]
[1760022996766,0.00200001,4353.9,4352.6,2.29842683]
[1760022996767,0.00200001,4353.9,4352.7,2.388]
[1760022996768,0.6336,4353.7,4352.7,2.388]
[1760022997000,0.6336,4353.7,4352.8,2.223]
[1760022997001,2.29721504,4353.1,4352.8,2.223]
[1760022997278,0.02296332,4353.3,4352.8,2.224]
[1760022997591,0.6336,4353.4,4352.9,0.001]
[1760022997793,0.6336,4353.4,4353.0,6.557]
[1760022997794,0.5165625,4353.3,4353.0,6.557]
[1760022998009,2.2973718,4352.8,4352.6,0.001]
[1760022998306,2.29731911,4352.9,4352.7,6.557]
[1760022998606,1.92,4353.2,4352.7,6.557]
[1760022998607,5.34439464,4352.8,4352.7,6.557]
[1760022998901,6.10856073,4352.8,4352.7,6.557]
[1760022999202,0.49342284,4352.8,4352.6,0.001]
[1760022999405,0.49342284,4352.7,4352.6,0.001]
[1760022999908,0.6336,4353.2,4352.6,0.001]
[1760023000202,0.6336,4352.8,4352.6,0.001]
[1760023000707,0.6336,4353.0,4352.6,0.001]
[1760023000906,0.65656332,4353.0,4352.6,0.001]
[1760023001081,0.6336,4352.8,4352.6,0.001]
[1760023001585,2.93092504,4352.9,4352.6,0.001]
[1760023001913,0.61775292,4353.5,4352.6,0.001]
[1760023001914,2.29740441,4352.8,4352.6,0.001]
[1760023002076,0.02296332,4352.7,4352.6,0.001]
[1760023002618,2.95388256,4352.9,4352.6,0.001]
[1760023003275,0.65656332,4352.9,4352.6,0.001]
[1760023003586,0.6336,4352.9,4352.6,0.001]
[1760023003799,0.6336,4352.9,4352.6,0.002]
[1760023004511,0.02296332,4353.3,4352.7,0.001]
[1760023004718,1.92,4353.1,4352.6,0.001]
[1760023004923,11.81672179,4353.2,4352.6,0.001]
[1760023004924,2.93102458,4352.7,4352.6,0.001]
[1760023005434,4.85102458,4352.7,4352.6,0.001]
[1760023005640,5.31652458,4352.7,4352.6,0.001]
[1760023006292,5.80835817,4352.7,4352.6,0.001]
[1760023006748,5.80835817,4352.7,4352.2,0.001]
[1760023006749,2.93123573,4352.3,4352.2,0.001]
[1760023007029,5.85115621,4352.3,4352.2,0.001]
[1760023007204,6.90864489,4352.3,4352.2,0.001]
[1760023007411,13.55964004,4352.3,4352.2,0.001]
[1760023007602,7.00064004,4352.3,4352.2,0.001]
[1760023008007,15.94764004,4352.3,4352.2,0.001]
[1760023008596,15.94864004,4352.3,4352.2,0.001]
[1760023009326,7.00064004,4352.3,4352.2,0.001]
[1760023009645,15.94864004,4352.3,4352.2,0.001]
[1760023009846,13.56064004,4352.3,4352.2,0.001]
[1760023010143,15.94964004,4352.3,4352.2,0.001]
[1760023010342,7.00064004,4352.3,4352.2,0.001]
[1760023010642,12.94568804,4352.3,4352.2,0.001]
[1760023011526,13.56064004,4352.3,4352.2,0.001]
[1760023012100,12.94568804,4352.3,4352.2,0.001]
[1760023012501,12.94568804,4352.3,4352.1,1e-08]
[1760023012502,4.85128852,4352.2,4352.1,1e-08]
[1760023012709,6.95703299,4352.2,4352.1,1e-08]
[1760023012953,6.60382433,4352.2,4352.1,1e-08]
[1760023013467,13.16382433,4352.2,4352.1,1e-08]
[1760023013626,13.77882596,4352.2,4352.1,1e-08]
[1760023013828,13.16482433,4352.2,4352.1,1e-08]
[1760023014021,10.77932433,4352.2,4352.1,1e-08]
[1760023014235,12.81372433,4352.2,4352.1,1e-08]
[1760023015151,13.27922433,4352.2,4352.1,1e-08]
[1760023017032,6.71822433,4352.2,4352.1,1e-08]
[1760023017345,12.9057144,4352.2,4352.1,1e-08]
[1760023017929,13.3433144,4352.2,4352.1,1e-08]
[1760023018337,13.95731603,4352.2,4352.1,1e-08]
[1760023018749,7.39631603,4352.2,4352.1,1e-08]
[1760023018927,13.95731603,4352.2,4352.1,1e-08]
[1760023019434,13.3433144,4352.2,4352.1,1e-08]
[1760023019746,13.3425144,4352.2,4352.1,1e-08]
[1760023020349,6.6671144,4352.2,4352.1,1e-08]
[1760023020539,7.48683626,4352.2,4352.1,1e-08]
[1760023020722,13.2281144,4352.2,4352.1,1e-08]
[1760023020926,7.28186952,4352.2,4352.1,1e-08]
[1760023021151,13.84285232,4352.2,4352.1,1e-08]
[1760023021447,13.2301144,4352.2,4352.1,1e-08]
[1760023021848,14.04983626,4352.2,4352.1,1e-08]
[1760023022549,14.05052636,4352.2,4352.1,1e-08]
[1760023022936,7.05192636,4352.2,4352.1,1e-08]
[1760023023137,13.72732636,4352.2,4352.1,1e-08]
[1760023023342,13.3445144,4352.2,4352.1,1e-08]
[1760023024155,14.58252381,4352.2,4352.1,1e-08]
[1760023024340,13.3445144,4352.2,4352.1,1e-08]
[1760023024650,7.57821035,4352.2,4352.1,1e-08]
[1760023024838,13.3445144,4352.2,4352.1,1e-08]
[1760023025041,8.01581035,4352.2,4352.1,1e-08]
[1760023025242,7.57821035,4352.2,4352.1,1e-08]
[1760023025622,14.13921035,4352.2,4352.1,1e-08]
[1760023026156,14.57681035,4352.2,4352.1,1e-08]
[1760023026461,4.85144691,4351.9,4351.7,0.001]
[1760023026619,11.9042805,4351.9,4351.7,0.001]
[1760023027356,13.13909624,4351.9,4351.7,0.001]
[1760023027750,6.57809624,4351.9,4351.7,0.001]
[1760023027982,6.57809624,4351.9,4351.8,0.1154]
[1760023028152,8.12198003,4351.9,4351.8,0.1154]
[1760023028354,7.32476429,4351.9,4351.8,0.001]
[1760023028648,7.54846429,4351.9,4351.8,0.001]
[1760023028851,4.85149971,4351.8,4351.7,0.001]
[1760023029071,12.3419333,4351.8,4351.7,0.001]
[1760023029273,14.84663547,4351.8,4351.7,0.001]
[1760023029669,15.30279188,4351.8,4351.7,0.001]
[1760023029979,13.65502493,4351.8,4351.7,0.001]
[1760023033778,13.74703108,4351.8,4351.7,0.001]
[1760023034670,13.74803108,4351.8,4351.7,0.001]
[1760023034851,2.29816376,4351.3,4351.2,0.001]
[1760023035059,10.00856067,4351.3,4351.2,0.001]
[1760023035273,10.90832092,4351.3,4351.2,0.001]
[1760023035576,11.02272092,4351.3,4351.2,0.001]
[1760023035785,4.46072092,4351.3,4351.2,0.001]
[1760023035998,12.81048595,4351.3,4351.2,0.001]
[1760023036181,12.78752263,4351.3,4351.2,0.001]
[1760023036387,11.13712092,4351.3,4351.2,0.001]
[1760023037402,12.78783084,4351.3,4351.2,0.001]
[1760023038303,12.78771869,4351.3,4351.2,0.001]
[1760023038876,0.6336,4350.7,4350.6,0.1144]
[1760023039106,1.12543359,4350.7,4350.6,0.1144]
[1760023039313,1.95065593,4350.7,4350.6,0.1164]
[1760023039808,1.95065593,4350.7,4350.6,0.1144]
[1760023040005,1.31705593,4350.7,4350.6,0.1144]
[1760023040218,1.31705593,4350.7,4350.6,0.002]
[1760023040374,0.49183359,4350.7,4350.6,3.33561755]
[1760023040895,0.61882272,4351.4,4350.6,1.03708402]
[1760023041099,0.49499824,4351.3,4350.7,0.002]
[1760023041412,0.61882272,4351.5,4351.2,0.1144]
[1760023041605,0.4949402,4351.4,4351.3,8.97698163]
[1760023041904,0.4949402,4351.4,4351.3,8.954]
[1760023042126,0.4949402,4351.4,4351.3,11.25216376]
[1760023042323,0.4949402,4351.4,4351.3,12.61864569]
[1760023042891,0.4941402,4351.4,4351.3,12.61864569]
[1760023043419,0.61882272,4352.0,4351.5,2.29804908]
[1760023043632,0.002,4352.1,4351.6,0.02498005]
[1760023043633,0.62082272,4352.1,4351.6,0.02498005]
[1760023043791,0.002,4352.1,4351.7,0.02497952]
[1760023043991,0.002,4352.1,4352.0,2.41219411]
[1760023044215,0.002,4352.1,4352.0,8.99617205]
[1760023044439,0.002,4352.1,4352.0,8.97319411]
[1760023044646,0.002,4352.1,4352.0,8.97519411]
[1760023044803,0.002,4352.1,4352.0,10.89519411]
[1760023045003,0.002,4352.1,4352.0,12.31036009]
[1760023045203,0.6336,4352.0,4350.8,2.39]
[1760023045408,0.6336,4351.8,4350.9,2.219]
[1760023045609,0.61882272,4351.9,4351.0,0.02498322]
[1760023045839,0.002,4352.1,4351.1,0.002]
[1760023045840,0.62082272,4352.1,4351.1,0.002]
[1760023045989,0.002,4352.2,4351.1,0.002]
[1760023045990,0.57282272,4352.4,4351.2,2.73759706]
[1760023046323,0.002,4352.6,4351.5,2.29803359]
[1760023046324,0.6356,4352.6,4351.5,2.29803359]
[1760023046533,0.6356,4352.6,4351.6,9.83997221]
[1760023046714,0.002,4352.6,4351.7,0.02497952]
[1760023046919,0.6356,4352.6,4351.8,0.98399717]
[1760023047225,0.002,4352.6,4351.9,0.02497846]
[1760023047427,0.02496332,4352.6,4351.9,0.002]
[1760023047632,2.32244822,4352.6,4351.9,0.002]
[1760023047800,0.02496332,4352.6,4351.9,0.002]
[1760023048002,2.29767049,4352.3,4351.9,0.85229972]
[1760023048202,2.29767049,4352.3,4352.0,0.002]
[1760023048607,2.29755642,4352.5,4351.9,0.85029972]
[1760023048812,2.29755642,4352.5,4351.9,0.85229972]
[1760023049111,2.297595,4352.4,4351.9,0.85229972]
[1760023049309,0.02496332,4352.6,4351.9,0.85029972]
[1760023049510,2.29758503,4352.4,4352.0,0.002]
[1760023049711,0.02496332,4352.6,4352.1,0.002]
[1760023050550,0.65856332,4352.6,4352.2,0.002]
[1760023050713,0.65856332,4352.6,4352.3,0.002]
[1760023050911,0.002,4352.6,4352.3,0.002]
[1760023051110,0.002,4352.6,4352.4,8.949]
[1760023051345,0.002,4352.6,4352.5,0.9200753]
[1760023051532,0.002,4352.6,4352.5,0.8971]
[1760023051849,0.002,4352.6,4352.4,8.949]
[1760023051850,2.29948755,4352.6,4352.4,8.949]
[1760023052014,0.002,4352.6,4352.4,8.949]
[1760023052350,2.29948924,4352.6,4352.4,8.949]
[1760023052709,2.29753015,4352.5,4352.4,8.949]
[1760023052914,2.32247467,4352.6,4352.4,8.949]
[1760023053210,0.002,4352.6,4352.4,8.949]
[1760023053431,0.002,4352.6,4352.5,0.002]
[1760023053975,0.002,4352.6,4352.5,0.9200753]
[1760023054160,0.002,4352.6,4352.5,0.8971]
[1760023054857,2.29753015,4352.5,4352.4,8.949]
[1760023055008,0.002,4352.6,4352.4,8.949]
[1760023055216,0.002,4352.6,4352.4,9.0634]
[1760023055913,0.02496332,4352.6,4352.4,9.0634]
[1760023056257,2.32244566,4352.6,4352.4,9.0634]
[1760023056471,2.29753015,4352.5,4352.4,9.0634]
[1760023056818,2.93113015,4352.5,4352.4,9.0634]
[1760023057013,2.93113015,4352.5,4351.1,0.002]
[1760023057014,2.29800219,4351.7,4351.1,0.002]
[1760023057370,2.93139411,4352.0,4351.9,0.1144]
[1760023057527,2.93139411,4352.0,4351.2,8.948]
[1760023057528,0.02296332,4351.6,4351.2,6.559]
[1760023057749,2.93176376,4351.3,4351.2,6.6734]
[1760023058845,3.42504787,4351.3,4351.2,6.6734]
[1760023059768,2.2984807,4350.7,4350.6,2.389]
[1760023059967,2.9320807,4350.7,4350.6,8.948]
[1760023060267,2.2986392,4350.4,4350.3,6.56]
[1760023060949,2.29859598,4350.5,4350.3,6.56]
[1760023061145,2.32160252,4350.4,4350.3,6.56]
[1760023061819,0.02296332,4350.4,4350.3,6.56]
[1760023062329,0.44,4351.1,4350.3,6.56]
[1760023062330,0.6336,4350.5,4350.3,6.56]
[1760023062532,2.93219698,4350.5,4350.3,6.56]
[1760023062736,0.02296332,4350.4,4349.8,0.001]
[1760023062942,0.82522234,4350.0,4349.8,0.001]
[1760023063248,5.58361113,4349.9,4349.8,0.001]
[1760023063426,6.00064781,4349.9,4349.8,0.001]
[1760023063616,7.1537681,4349.9,4349.8,0.001]
[1760023064021,9.5427681,4349.9,4349.8,0.001]
[1760023065485,10.36315914,4349.9,4349.8,0.001]
[1760023066001,14.53335914,4349.9,4349.8,0.001]
[1760023066167,16.92235914,4349.9,4349.8,0.001]
[1760023066372,7.1529681,4349.9,4349.8,0.001]
[1760023066593,16.1019681,4349.9,4349.8,0.001]
[1760023068065,19.10687506,4349.9,4349.8,0.001]
[1760023068405,28.87554275,4349.9,4349.8,0.001]
[1760023069268,28.05687506,4349.9,4349.8,0.001]
[1760023070697,2.93292629,4349.1,4349.0,1e-08]
[1760023070900,26.45251203,4349.1,4349.0,1e-08]
[1760023071204,26.45251203,4349.1,4347.0,0.001]
[1760023071205,2.5536,4349.0,4347.0,0.001]
[1760023071531,16.71540962,4347.9,4347.0,0.001]
[1760023071710,26.38620535,4347.9,4347.0,0.001]
[1760023071998,26.83800535,4347.9,4347.0,0.001]
[1760023072167,27.75223816,4347.9,4347.0,0.001]
[1760023073489,27.84432968,4347.9,4347.0,0.001]
[1760023074489,28.31071911,4347.9,4347.0,0.001]
[1760023075694,19.35971911,4347.9,4347.0,0.001]
[1760023076006,28.31271911,4347.9,4347.0,0.001]
[1760023081361,2.93398416,4347.1,4347.0,0.001]
[1760023081571,25.9642313,4347.1,4347.0,0.001]
[1760023081719,26.91712703,4347.1,4347.0,0.001]
[1760023081918,2.93446052,4346.2,4346.1,0.005]
[1760023082119,23.30227256,4346.2,4346.1,0.005]
[1760023082320,0.6336,4346.0,4344.8,0.05]
[1760023082558,21.29664624,4346.2,4344.8,0.05]
[1760023082559,2.93499003,4345.2,4344.8,0.05]
[1760023082724,9.49799003,4345.2,4344.8,0.05]
[1760023082926,11.88059003,4345.2,4344.8,0.05]
[1760023083259,11.88059003,4345.2,4343.1,0.005]
[1760023083260,0.6336,4344.7,4343.1,0.005]
[1760023083431,4.8555198,4344.2,4343.1,0.005]
[1760023083620,7.1976,4344.2,4343.1,0.005]
[1760023083825,5.3181198,4344.2,4343.1,0.005]
[1760023084029,11.8821198,4344.2,4343.1,0.005]
[1760023084536,12.37114943,4344.2,4343.1,0.005]
[1760023084737,13.28538224,4344.2,4343.1,0.005]
[1760023085056,6.72138224,4344.2,4343.1,0.005]
[1760023085357,13.28539114,4344.2,4343.1,0.005]
[1760023085765,15.67739114,4344.2,4343.1,0.005]
[1760023086152,2.30197279,4344.1,4343.1,0.005]
[1760023086366,16.71789852,4343.2,4343.1,0.005]
[1760023086665,23.28289852,4343.2,4343.1,0.005]
[1760023086834,24.23468033,4343.2,4343.1,0.005]
[1760023087159,17.66968033,4343.2,4343.1,0.005]
[1760023087364,24.23468033,4343.2,4343.1,0.005]
[1760023087659,25.61976309,4343.2,4343.1,0.005]
[1760023087877,24.23468033,4343.2,4343.1,0.005]
[1760023088078,24.23568033,4343.2,4343.1,0.005]
[1760023088486,17.66968033,4343.2,4343.1,0.005]
[1760023088783,24.23568033,4343.2,4343.1,0.005]
[1760023088993,24.23488033,4343.2,4343.1,0.005]
[1760023089702,25.91325572,4343.2,4343.1,0.005]
[1760023090379,5.80783161,4343.2,4343.1,0.005]
[1760023090780,8.97618181,4343.2,4343.1,0.005]
[1760023090982,11.27863161,4343.2,4343.1,0.005]
[1760023091481,11.91223161,4343.2,4343.1,0.005]
[1760023091998,5.80783161,4343.2,4343.1,0.005]
[1760023092149,3.04278181,4343.2,4343.1,0.005]
[1760023092350,10.01519493,4343.2,4343.1,0.005]
[1760023092654,9.99223161,4343.2,4343.1,0.006]
[1760023092961,10.45483161,4343.2,4343.1,0.006]
[1760023093154,12.70660206,4343.2,4343.1,0.006]
[1760023093481,3.88783161,4343.2,4343.1,0.006]
[1760023093681,3.44819493,4343.2,4343.1,0.006]
[1760023093868,10.01519493,4343.2,4343.1,0.006]
[1760023094074,9.99223161,4343.2,4343.1,0.006]
[1760023094874,10.45483161,4343.2,4343.1,0.006]
[1760023095073,14.08195372,4343.2,4343.1,0.006]
[1760023095283,25.94380244,4343.2,4343.1,1e-08]
[1760023095476,4.8563149,4342.7,4342.6,0.001]
[1760023095682,14.30749671,4342.7,4342.6,0.001]
[1760023095887,14.77009671,4342.7,4342.6,0.001]
[1760023096094,15.6555828,4342.7,4342.6,0.001]
[1760023096455,16.47142728,4342.7,4342.6,0.001]
[1760023096661,15.6555828,4342.7,4342.6,0.001]
[1760023096861,16.8934653,4342.7,4342.6,0.001]
[1760023098371,15.6555828,4342.7,4342.6,0.001]
[1760023098769,7.16085301,4342.7,4342.6,0.001]
[1760023099087,15.23836692,4342.7,4342.6,0.001]
[1760023099582,12.84436692,4342.7,4342.6,0.001]
[1760023099795,15.23836692,4342.7,4342.6,0.001]
[1760023099968,5.81276692,4342.7,4342.6,0.001]
[1760023100168,6.27536692,4342.7,4342.6,0.001]
[1760023100369,12.84436692,4342.7,4342.6,0.001]
[1760023100592,6.27536692,4342.7,4342.6,0.001]
[1760023100798,12.84436692,4342.7,4342.6,0.001]
[1760023101562,2.87645202,4342.7,4342.6,0.001]
[1760023101882,15.26133024,4342.7,4342.6,0.001]
[1760023102088,15.23836692,4342.7,4342.6,0.001]
[1760023103317,12.84436692,4342.7,4342.6,0.001]
[1760023104406,4.73424267,4342.7,4342.6,0.001]
[1760023104606,0.48918181,4342.7,4342.6,0.1154]
[1760023105136,3.42549671,4342.7,4342.6,0.1154]
[1760023106031,4.03952294,4342.7,4342.6,0.1154]
[1760023106536,4.04008418,4342.7,4342.6,0.1154]
[1760023106705,3.42549671,4342.7,4342.6,0.1154]
[1760023107027,1.73735781,4342.7,4342.6,0.1154]
[1760023107230,3.42549671,4342.7,4342.6,0.1154]
[1760023107436,4.26664583,4342.7,4342.6,0.1154]
[1760023107638,13.89095346,4342.7,4342.6,0.001]
[1760023107786,2.93658005,4342.2,4342.1,0.005]
[1760023107992,3.42576186,4342.2,4342.1,0.005]
[1760023108229,10.46666186,4342.2,4342.1,0.005]
[1760023108432,12.38666186,4342.2,4342.1,0.005]
[1760023108739,14.63843231,4342.2,4342.1,0.005]
[1760023109031,14.63843231,4342.2,4340.7,2.4518]
[1760023109032,2.30351055,4341.2,4340.7,2.4518]
[1760023109235,2.79269236,4341.2,4340.7,2.4518]
[1760023109424,3.6141833,4341.2,4340.7,2.4518]
[1760023109743,1.31067275,4341.2,4340.7,2.4518]
[1760023110105,1.31067275,4341.2,4340.2,9.579]
[1760023110106,9.99529236,4341.2,4340.2,0.0578]
[1760023110421,11.22918899,4341.2,4340.3,0.0578]
[1760023110736,1.12278181,4341.2,4340.7,0.0578]
[1760023110938,3.42629236,4341.2,4340.7,0.0578]
[1760023111137,1.12278181,4341.2,4340.7,0.0578]
[1760023111490,1.12278181,4341.2,4340.7,0.08083775]
[1760023111491,0.48918181,4341.2,4340.7,0.08083775]
[1760023111696,0.48918181,4341.2,4340.7,0.0578]
[1760023111918,0.48838181,4341.2,4340.7,0.0578]
[1760023112126,2.79189236,4341.2,4340.7,0.0578]
[1760023113007,0.48838181,4341.2,4340.7,0.0578]
[1760023114010,2.79189236,4341.2,4340.7,0.0578]
[1760023114430,4.44249013,4341.2,4340.7,0.0578]
[1760023114830,2.79189236,4341.2,4340.7,0.0578]
[1760023115235,5.07609013,4341.2,4340.3,0.0578]
[1760023115438,3.42549236,4341.2,4340.3,0.0578]
[1760023115647,2.30376025,4340.8,4340.3,0.0578]
[1760023115941,1.23887046,4340.5,4340.4,0.28576]
[1760023116320,1.23887046,4340.5,4340.1,0.005]
[1760023116526,1.23887046,4340.4,4340.1,0.005]
[1760023116719,1.23887046,4340.3,4340.1,0.005]
[1760023117134,1.23887046,4340.3,4340.2,0.0578]
[1760023117441,1.23887046,4340.4,4340.2,0.0578]
[1760023117667,1.23887046,4340.4,4340.2,0.1722]
[1760023117965,1.23887046,4340.5,4340.4,2.30393512]
[1760023118167,1.23887046,4340.5,4340.4,0.32313351]
[1760023118168,0.82575842,4340.5,4340.4,0.32313351]
[1760023118376,0.82575842,4340.6,4340.4,2.62706863]
[1760023118662,0.82575842,4340.6,4340.5,0.0578]
[1760023118862,1.23887046,4340.8,4340.5,0.3319519]
[1760023119027,1.23887046,4340.8,4340.6,0.0578]
[1760023119229,1.23887046,4340.8,4340.1,0.005]
[1760023119230,2.30396615,4340.4,4340.1,0.005]
[1760023119456,2.30388601,4340.5,4340.1,0.005]
[1760023119639,1.2388035,4340.2,4340.1,0.005]
[1760023120044,1.2388035,4340.3,4340.1,0.005]
[1760023120247,0.61930359,4340.3,4340.2,9.04484041]
[1760023120537,2.30321187,4341.8,4340.2,9.04484041]
[1760023120538,0.61930359,4340.5,4340.4,2.30393512]
[1760023120731,0.61930359,4340.6,4340.4,0.0578]
[1760023121335,0.61930359,4340.7,4340.4,0.0578]
[1760023121536,0.61930359,4340.7,4340.5,2.30383145]
[1760023121742,0.61930359,4340.7,4340.6,0.0578]
[1760023121944,0.61930359,4340.7,4340.6,0.48597661]
[1760023122143,0.82576108,4340.9,4340.6,0.0578]
[1760023122348,0.61944272,4340.7,4340.3,1.92]
[1760023122868,0.61944272,4340.7,4340.4,0.0578]
[1760023123027,0.61944272,4340.6,4340.3,1.92]
[1760023123227,0.61944272,4340.6,4340.2,3.06117535]
[1760023123468,0.61944272,4340.5,4340.3,0.0578]
[1760023123867,0.61944272,4340.5,4340.4,0.0578]
[1760023124037,1.11511258,4340.5,4340.4,2.36173512]
[1760023124237,0.49566986,4340.5,4340.4,2.36173512]
[1760023124749,1.11511258,4340.5,4340.4,6.6268]
[1760023124954,0.49566986,4340.5,4340.4,6.6268]
[1760023125357,0.49566986,4340.5,4340.4,7.52038735]
[1760023125572,0.49566986,4340.5,4340.4,11.74432247]
[1760023125773,0.61944272,4341.2,4340.6,2.30382896]
[1760023125982,0.02296332,4342.0,4341.0,2.30361667]
[1760023125983,0.49580178,4341.1,4341.0,2.30361667]
[1760023126280,0.49580178,4341.1,4341.0,8.93041667]
[1760023126482,0.49580178,4341.1,4341.0,10.29333062]
[1760023126888,0.49580178,4341.1,4341.0,21.79533062]
[1760023127193,1.65182729,4342.7,4341.0,21.79533062]
[1760023127194,0.62444272,4342.9,4341.2,2.30351055]
[1760023127396,0.005,4342.9,4342.5,2.30282084]
[1760023127599,0.005,4342.9,4342.6,3.4378]
[1760023127966,0.005,4342.9,4342.7,0.0578]
[1760023128168,0.005,4342.9,4342.8,0.58328]
[1760023128370,0.005,4342.9,4342.8,0.64108]
[1760023128686,0.005,4342.9,4342.8,7.21008]
[1760023129388,0.005,4342.9,4342.8,7.32448]
[1760023131173,0.005,4342.9,4342.8,9.62714187]
[1760023131370,0.005,4342.9,4342.8,7.32448]
[1760023133575,0.005,4342.9,4342.8,7.32248]
[1760023133906,0.005,4342.9,4342.8,6.6814]
[1760023134692,0.005,4342.9,4342.8,9.04186187]
[1760023135013,0.0042,4342.9,4342.8,9.04186187]
[1760023135793,0.0042,4342.9,4342.8,6.7392]
[1760023135983,0.0042,4342.9,4342.8,7.65262]
[1760023136581,0.0042,4342.9,4342.8,7.59482]
[1760023136882,2.32977217,4342.9,4342.8,0.1144]
[1760023137071,2.94040885,4342.9,4342.8,0.1144]
[1760023137270,2.94040885,4342.9,4341.9,2.394]
[1760023137271,2.30287398,4342.4,4342.3,0.14]
[1760023138017,2.30279818,4342.6,4341.9,6.224]
[1760023138018,2.30293612,4342.3,4341.9,6.224]
[1760023138217,2.30288586,4342.4,4342.0,0.62818]
[1760023138382,2.30294224,4342.3,4341.9,6.2818]
[1760023138719,0.02296332,4342.2,4341.9,6.224]
[1760023138874,0.02296332,4342.7,4341.9,6.224]
[1760023139079,2.3030441,4342.1,4341.9,6.224]
[1760023139388,0.02296332,4342.0,4341.9,6.224]
[1760023139998,2.30292825,4342.3,4341.9,6.224]
[1760023139999,0.6336,4342.3,4341.9,6.224]
[1760023140208,0.02296332,4342.2,4341.9,6.8464]
[1760023140418,0.6336,4342.7,4342.0,0.0578]
[1760023140632,2.30299707,4342.2,4341.9,6.224]
[1760023140854,2.30308613,4342.0,4341.9,6.224]
[1760023141138,2.30347758,4341.3,4341.2,6.566]
[1760023141523,2.3035136,4341.2,4340.8,6.566]
[1760023141835,2.30354346,4341.2,4340.8,6.566]
[1760023142050,2.30318445,4341.9,4340.9,0.0578]
[1760023142051,2.30323079,4341.8,4340.9,0.0578]
[1760023142216,0.61944272,4342.5,4341.0,0.90178]
[1760023142405,2.30315341,4341.9,4341.1,0.0578]
[1760023142604,2.32615902,4341.8,4341.1,0.0578]
[1760023142821,0.02296332,4341.8,4341.1,0.0578]
[1760023143042,0.02296332,4341.9,4341.1,0.0578]
[1760023143347,0.65656332,4342.1,4341.1,1.04071563]
[1760023143644,0.02296332,4342.1,4341.1,1.04071563]
[1760023143804,2.30327709,4341.7,4341.1,1.04071563]
[1760023144004,0.02296332,4341.6,4341.1,1.04071563]
[1760023144267,0.02296332,4341.6,4341.2,0.0578]
[1760023144403,0.02296332,4342.1,4341.3,6.6238]
[1760023144610,2.30328763,4341.7,4341.3,7.38447156]
[1760023144954,0.6336,4341.8,4341.4,0.0578]
[1760023145110,0.6336,4341.8,4341.5,0.0578]
[1760023145300,2.30321136,4341.8,4341.5,0.0578]
[1760023145506,2.30319222,4341.8,4341.3,7.32667156]
[1760023145700,2.93651785,4342.4,4341.3,7.32667156]
[1760023145701,0.02296332,4341.7,4341.3,7.32667156]
[1760023145903,2.30340443,4341.4,4341.3,6.566]
[1760023146109,2.30313917,4341.9,4341.3,6.566]
[1760023146443,2.30334124,4341.6,4341.3,6.566]
[1760023146604,0.6336,4341.8,4341.4,0.0578]
[1760023146805,0.02296332,4342.0,4341.5,0.0578]
[1760023147151,2.30319002,4341.9,4341.6,0.0578]
[1760023147348,2.30324064,4341.8,4341.6,0.0578]
[1760023147535,2.30324064,4341.8,4341.4,0.66238]
[1760023147708,2.30324064,4341.8,4341.7,0.1144]
[1760023148663,2.93684064,4341.8,4341.7,0.1144]
[1760023149051,3.43114337,4341.8,4341.7,0.1144]
[1760023149478,3.43121574,4341.8,4341.7,0.1144]
[1760023151387,2.93684064,4341.8,4341.7,0.1144]
[1760023152371,3.43127633,4341.8,4341.7,0.1144]
[1760023155482,3.43127633,4341.8,4341.1,0.001]
[1760023155483,0.6336,4341.5,4341.1,0.001]
[1760023155691,2.93695137,4341.5,4341.4,0.1144]
[1760023155891,3.43152561,4341.5,4341.4,0.1144]
[1760023156263,2.93695137,4341.5,4341.4,0.1144]
[1760023157588,3.45444944,4341.5,4341.4,0.1144]
[1760023157891,3.45364944,4341.5,4341.4,0.1144]
[1760023158495,3.89924944,4341.5,4341.4,0.1144]
[1760023158658,3.89924944,4341.5,4341.1,0.001]
[1760023158659,2.30351055,4341.2,4341.1,0.001]
[1760023158854,2.82100862,4341.2,4341.1,0.001]
[1760023159081,3.2436453,4341.2,4341.1,0.001]
[1760023159306,3.26660862,4341.2,4341.1,0.001]
[1760023159491,6.77496672,4341.2,4341.1,0.001]
[1760023159703,6.7520034,4341.2,4341.1,0.001]
[1760023159998,8.32676448,4341.2,4341.1,0.001]
[1760023160202,2.93764128,4340.2,4339.9,0.001]
[1760023160362,10.02113935,4340.2,4339.9,0.001]
[1760023160692,10.44377603,4340.2,4339.9,0.001]
[1760023160864,13.0411693,4340.2,4339.9,0.001]
[1760023161264,13.65890011,4340.2,4339.9,0.001]